[Event "1st FIDE Olympiad DIS 2023"]
[Site "Belgrade"]
[Date "2023.02.03"]
[Round "5.13"]
[White "Zaynidinov, Sirojiddin"]
[Black "Zambo, Zoltan Istvan"]
[Result "0-1"]
[ECO "B37"]
[WhiteElo "2042"]
[BlackElo "2301"]
[Annotator "TA"]
[PlyCount "176"]
[EventDate "2023.01.30"]
[EventType "team-tourn"]
[EventCountry "SRB"]
[SourceTitle "playchess.com"]
[Source "ChessBase"]
[SourceQuality "1"]
[WhiteTeam "Uzbekistan"]
[BlackTeam "Hungary"]
[WhiteTeamCountry "UZB"]
[BlackTeamCountry "HUN"]
[TimeControl "40/5400+30:1800+30"]

{[%evp 18,176,-12,-28,0,-21,0,0,0,0,0,-37,-2,-65,-69,-54,-63,-58,-67,-63,-62,-52,-59,-82,-91,-87,-90,-91,-82,-85,-81,-81,-79,-107,-82,-103,-51,-63,-21,-24,206,228,248,217,387,343,329,331,287,206,318,312,310,0,0,0,0,0,6,-14,-14,-21,-19,-166,-26,-22,-48,-58,-20,-20,-16,-53,-56,-58,-69,-137,-129,-134,-115,-89,-53,-53,-45,-53,-45,-45,-45,-45,-52,-53,-53,-53,-53,-53,-38,-45,-38,-45,-45,-53,-53,-53,-52,-55,-53,-55,-29,-31,-14,-14,-14,-26,-33,-38,-14,-16,-8,-8,-8,-10,-8,-20,-14,-14,0,-14,-14,-26,-8,-6,-6,-21,-21,-24,-14,-39,-14,-14,-14,-14,-18,-18,-14,-65,0,0,0,-65,-65,-431,-65,-29961,-29969,-29962,-5114,-29982,-658,-29990,-29986,-29986,-29987]} 1. c4 {[%emt 0:01:16]} c5 {[%emt 0:00:49]} 2. Nf3 {[%emt 0:00:12][%cal Bg1f3,Bf3d4,Bd4c2,Bc2b4,Bb4d5][%mdl 32]} Nc6 {[%emt 0:00:19]} 3. Nc3 {[%emt 0:00:09]} g6 {[%emt 0:00:11]} 4. d4 {[%emt 0:07:40]} cxd4 {[%emt 0:01:06]} 5. Nxd4 {[%emt 0:00:22]} Bg7 {[%emt 0:00:20]} 6. Nc2 {[%emt 0:02:37]} Bxc3+ {[%emt 0:05:03]} 7. bxc3 {[%emt 0:00:11]} Qa5 {[%emt 0:00:04]} 8. Bd2 {[%emt 0:02:39]} Nf6 {[%emt 0:02:23]} 9. f3 {[%emt 0:09:57]} d6 {[%emt 0:09:30]} 10. e4 {[%emt 0:05:14]} Bd7 {[%emt 0:02:05] [#] B37: Sicilian: Maroczy Bind with 5...Bg7, sidelines.} 11. Nb4 $146 {[%emt 0:04:11]} ({Predecessor:} 11. Be2 Rc8 12. Ne3 Be6 13. Qb1 b6 14. f4 Qc5 15. f5 Bd7 16. Nd5 Nxd5 17. cxd5 Ne5 18. fxg6 hxg6 {0-1 Gogolev,A (2306)-Bok,B (2591) Chigorin Memorial 23rd 2015 (2)}) 11... Rc8 {[%emt 0:07:34]} 12. Nd5 {[%emt 0:13:14]} Ne5 {[%emt 0:01:04] The position is equal.} 13. Qb3 {[%emt 0:01:09]} b6 {[%emt 0:04:42]} 14. Rc1 {[%emt 0:07:17]} Be6 {[%emt 0:22:41]} 15. Bg5 {[%emt 0:11:34]} (15. c5 $11 Qxc5 16. c4) 15... Nfd7 $15 {[%emt 0:06:51]} 16. Be2 {[%emt 0:10:11]} Nc5 {[%emt 0:03:00]} 17. Qb1 {[%emt 0:00:28]} (17. Qb5+ $2 Qxb5 18. cxb5 Ncd3+ 19. Kd2 Nxc1 20. Rxc1 f6 $19) 17... f6 {[%emt 0:02:43]} 18. Be3 {[%emt 0:02:56]} Qa4 {[%emt 0:01:56]} 19. Bd4 {[%emt 0:06:42]} Nxc4 {[%emt 0:02:49] A dynamic duo of knights.} 20. Kf2 {[%emt 0:02:15]} Kf7 {[%emt 0:08:21]} 21. Rhd1 {[%emt 0:03:32] Prevents Nd2.} Bd7 {[%emt 0:05:18]} 22. Kg1 {[%emt 0:03:02]} Ne6 {[%emt 0:03:06][%cal Bc5e6,Be6c7,Bc7b5,Bb5a3][%mdl 32]} 23. Bf2 {[%emt 0:00:26]} Nc7 {[%emt 0:04:02]} (23... g5 {with more complications.} 24. h4 Nf4 25. Bf1 h6) 24. Nb4 {[%emt 0:01:46]} Nb5 {[%emt 0:02:32]} 25. Nd5 {[%emt 0:01:57]} Nba3 {[%emt 0:00:49]} 26. Qb3 {[%emt 0:00:27]} Na5 {[%emt 0:02:32]} (26... Qa5 $17 {And now ...Ba4 would win.} 27. Re1 Ba4) 27. Qb4 {[%emt 0:00:27][%cal Od5e7]} Qxb4 {[%emt 0:01:04]} 28. cxb4 {[%emt 0:00:05]} Nb7 {[%emt 0:00:36]} (28... N5c4 $11) 29. Ba6 $18 {[%emt 0:00:37]} Bc6 {[%emt 0:00:39]} 30. Nf4 {[%emt 0:01:49]} (30. Rxc6 $6 Rxc6 31. Bxb7 Rc2 $16) 30... b5 $2 {[%emt 0:00:27]} (30... g5) 31. Rxc6 {[%emt 0:00:15][%mdl 64] [#] Remove Defender} Rxc6 {[%emt 0:00:10]} 32. Bxb7 {[%emt 0:00:03]} Rc2 {[%emt 0:00:20]} 33. Bxa7 {[%emt 0:00:25]} e6 {[%emt 0:00:41]} (33... e5 {was necessary.}) 34. Rxd6 {[%emt 0:00:40]} Rc7 {[%emt 0:00:22] Prevents Rd7+} 35. Ra6 $2 {[%emt 0:00:55]} ({But not} 35. Nxe6 Rxb7 36. Bc5 Nc4 37. Nd8+ Rxd8 38. Rxd8 Ne5 $18) ({White should try} 35. Rb6 $18) 35... Rxb7 $11 {[%emt 0:00:11]} 36. Bc5 {[%emt 0:00:57]} (36. Rxa3 $2 {too greedy.} Ra8 37. Rc3 Raxa7 $19) 36... Nc4 {[%emt 0:00:53]} 37. Nxe6 {[%emt 0:00:07]} Ne5 {[%emt 0:00:41]} 38. f4 {[%emt 0:00:51]} Re8 {[%emt 0:00:37]} 39. f5 {[%emt 0:00:36]} Rd7 {[%emt 0:00:16]} 40. Rb6 {[%emt 0:00:46]} (40. Kf2 $11 {and White has nothing to worry.}) 40... gxf5 {[%emt 0:00:15]} (40... Rd1+ $19 41. Kf2 Ra8 42. Rb7+ Rd7 43. Rxd7+ Nxd7) 41. exf5 {[%emt 0:30:02]} Ng4 {[%emt 0:30:30][%cal Rd7d1]} 42. Kf1 {[%emt 0:00:00]} (42. Rxb5 $2 Rd1#) 42... Nh6 {[%emt 0:00:00]} 43. Nd4 {[%emt 0:00:00]} Re5 {[%emt 0:00:00][%cal Oe5c5]} 44. Rxb5 {[%emt 0:00:00]} Nxf5 {[%emt 0:00:00]} 45. Nf3 {[%emt 0:00:00]} Re4 {[%emt 0:00:00][%mdl 1024] Black has compensation.} 46. Bf2 {[%emt 0:00:00]} (46. Rb8 $15) 46... Rd1+ $17 {[%emt 0:00:00]} 47. Be1 {[%emt 0:00:00]} Nh4 {[%emt 0:00:00] White must now prevent ...Nxf3.} 48. Rb7+ {[%emt 0:00:00]} Ke6 {[%emt 0:00:00] ...Nxf3 would be deadly.} 49. Nxh4 {[%emt 0:00:00]} Rdxe1+ $15 {[%emt 0:00:00][%mdl 4096] Endgame KRR-KRN} 50. Kf2 {[%emt 0:00:00]} Ra1 {[%emt 0:00:00]} 51. Rxh7 {[%emt 0:00:00]} Rxa2+ {[%emt 0:00:00]} 52. Kg3 {[%emt 0:00:00]} Rxb4 {[%emt 0:00:00]} 53. Kh3 {[%emt 0:00:20]} Ra3+ {[%emt 0:00:00]} 54. Nf3 {[%emt 0:00:11]} Kf5 {[%emt 0:00:00]} 55. Rg7 {[%emt 0:00:30]} Rb8 {[%emt 0:00:00]} 56. Kg3 {[%emt 0:00:33]} Rh8 {[%emt 0:00:00]} 57. h3 {[%emt 0:01:14]} Rb8 {[%emt 0:01:13]} 58. Rg4 {[%emt 0:01:25]} Rb2 {[%emt 0:00:27]} 59. Rg8 {[%emt 0:01:05]} Ke6 {[%emt 0:00:28]} 60. Rg7 {[%emt 0:00:09]} Rb4 {[%emt 0:00:23]} 61. Kh2 {[%emt 0:00:31]} f5 {[%emt 0:00:31]} 62. Rg6+ {[%emt 0:00:18]} Kd5 {[%emt 0:00:29]} 63. Rf6 {[%emt 0:01:23]} Ke4 {[%emt 0:03:01]} 64. Re6+ {[%emt 0:00:32]} Kf4 {[%emt 0:00:35]} 65. Rh6 {[%emt 0:00:34] Threatens to win with Rh4+.} Ke3 {[%emt 0:00:42]} 66. Rf6 {[%emt 0:00:20]} f4 {[%emt 0:00:21]} 67. Re6+ {[%emt 0:00:26]} Re4 {[%emt 0:00:18]} 68. Rf6 {[%emt 0:00:57]} Kf2 {[%emt 0:00:17]} 69. Nh4 {[%emt 0:00:33]} Rg3 {[%emt 0:01:25]} 70. Rf8 {[%emt 0:02:23]} Ra3 {[%emt 0:00:36]} 71. Nf3 {[%emt 0:00:48]} Rb4 {[%emt 0:01:05]} 72. Ne5 {[%emt 0:00:25]} Rc3 {[%emt 0:02:16]} 73. Ng6 {[%emt 0:00:23]} Ke3 {[%emt 0:00:28]} 74. Nh4 {[%emt 0:00:26]} Rc1 {[%emt 0:00:41] ...Rbb1 is the strong threat.} 75. Re8+ {[%emt 0:00:41]} Kd3 {[%emt 0:00:24]} 76. Rd8+ {[%emt 0:00:24]} Ke4 {[%emt 0:00:47]} (76... Ke2 $5 {[%cal Rb4b1]} 77. Rf8 Ke3 $17) 77. Re8+ {[%emt 0:00:21]} Kd5 {[%emt 0:00:19]} 78. Rf8 {[%emt 0:00:20]} Rf1 {[%emt 0:00:22]} 79. Nf3 {[%emt 0:00:53]} Rb2 {[%emt 0:01:35]} 80. Rf5+ {[%emt 0:01:31]} (80. Rxf4 $11 Rff2 81. h4) 80... Kd6 {[%emt 0:00:37] Black is much more active.} (80... Ke4 $15 81. Re5+ Kd3) 81. Rf6+ $11 {[%emt 0:00:46]} Kd5 {[%emt 0:00:41]} ({Better is} 81... Ke7 $11 82. Rxf4 Rff2) 82. Rf5+ $15 {[%emt 0:00:17]} Ke4 {[%emt 0:01:04]} 83. Re5+ {[%emt 0:00:18]} Kd3 {[%emt 0:00:51][%cal Ob2b1] ( -> ...Rbb1!)} 84. Ne1+ $2 {[%emt 0:00:36][%mdl 8192] [#]} (84. Ra5 $15) 84... Kd4 {[%emt 0:00:00]} 85. Re8 {[%emt 0:00:35]} Rb1 {[%emt 0:00:14]} 86. Nc2+ {[%emt 0:00:51]} Kd5 {[%emt 0:00:17]} (86... Kc3 $142 87. Re1 Rfxe1 88. Nxe1 Rxe1 89. h4 Kd3 90. h5 Kd4 91. Kh3 Ke4 92. Kg4 Rg1 93. Kh3 Rh1+ 94. Kg4 Rh2 95. h6 Rxh6 96. Kg5 Rc6 97. Kg4 Rg6+ 98. Kh3 Rg3+ 99. Kh2 Ke3 100. Kh1 Kf2 101. Kh2 f3 102. gxf3 Rxf3 103. Kh1 Rh3#) 87. Rd8+ {[%emt 0:00:20]} Ke5 {[%emt 0:00:16][%csl Gb1][%cal Rf1h1]} 88. Re8+ {[%emt 0:00:09]} Kd6 {[%emt 0:00:06] Black used his chance.   Weighted Error Value: White=0.24 (precise) /Black=0.21 (precise)} 0-1

[Event "1st FIDE Olympiad DIS 2023"]
[Site "Belgrade"]
[Date "2023.02.03"]
[Round "5.13"]
[White "Miheso, Clement Chomu"]
[Black "Gora, Tapiwa"]
[Result "0-1"]
[ECO "A59"]
[WhiteElo "1615"]
[BlackElo "1959"]
[Annotator "TA"]
[PlyCount "106"]
[EventDate "2023.01.30"]
[EventType "team-tourn"]
[EventCountry "SRB"]
[SourceTitle "playchess.com"]
[Source "ChessBase"]
[SourceQuality "1"]
[WhiteTeam "Kenya"]
[BlackTeam "Zimbabwe"]
[WhiteTeamCountry "KEN"]
[BlackTeamCountry "ZIM"]
[TimeControl "40/5400+30:1800+30"]

{[%evp 17,105,66,67,28,42,10,10,-13,33,-12,-17,-30,-22,-93,-76,-64,-57,-54,-35,-37,0,-40,0,-61,-38,-60,33,54,82,92,120,82,72,-25,-5,-16,22,29,97,85,115,97,124,120,123,123,164,154,155,127,146,128,124,12,16,0,164,165,211,215,279,76,364,59,52,-50,128,0,0,-17,-17,-45,-41,-42,-37,-143,-143,-143,-143,-143,-143,-129,-133,-155,-145,-132,-116,-239,-151,-29999]} 1. d4 {[%emt 0:00:48]} Nf6 {[%emt 0:00:56]} 2. c4 {[%emt 0:00:30]} c5 {[%emt 0:00:24]} 3. d5 {[%emt 0:01:39]} b5 {[%emt 0:00:55]} 4. cxb5 {[%emt 0:01:32]} a6 {[%emt 0:00:21]} 5. bxa6 {[%emt 0:03:06]} Bxa6 {[%emt 0:00:10]} 6. Nc3 {[%emt 0:00:50]} g6 {[%emt 0:00:12]} 7. e4 {[%emt 0:01:35]} Bxf1 {[%emt 0:00:09]} 8. Kxf1 {[%emt 0:00:32]} d6 {[%emt 0:00:07]} 9. Nge2 {[%emt 0:02:03]} Bg7 {[%emt 0:00:21]} 10. h4 {[%emt 0:00:31] A59: Benko/Volga Gambit: White castles by hand.} Nbd7 {[%emt 0:02:52]} 11. Ng3 {[%emt 0:01:31]} h5 {[%emt 0:00:12] [#]} 12. Qc2 $146 {[%emt 0:02:04] The position is equal.} ({Predecessor:} 12. Bf4 Ng4 13. f3 Nge5 14. Qe2 O-O 15. Rh3 Qa5 16. Nh1 Rfb8 17. Nf2 Qb4 18. Bc1 {0-1 Da Silva,A (1679)-Predebon,E (1790) Porto Alegre Regional Sul 2019 (4)}) 12... Qa5 {[%emt 0:00:22]} (12... Qb6 $11 {is superior.}) 13. Bd2 {[%emt 0:01:23]} O-O {[%emt 0:00:27][%mdl 1024] Black has compensation.} 14. Kg1 {[%emt 0:00:18]} Rfb8 {[%emt 0:00:27]} 15. b3 {[%emt 0:05:30]} (15. f3 $11 {keeps the balance.}) 15... Ng4 $17 {[%emt 0:03:23][%cal Oc5c4]} 16. Nge2 {[%emt 0:01:41]} Qa7 {[%emt 0:00:19][%cal Ob8b3] Black is much more active. The white rooks are badly placed.} 17. Rh3 {[%emt 0:01:18]} Bf6 {[%emt 0:06:56]} (17... c4 {with more complications.} 18. Rf1 Be5 19. bxc4 Bf6) 18. Rf1 {[%emt 0:03:36]} Kg7 {[%emt 0:09:37]} 19. Bc1 {[%emt 0:03:32]} Rb7 {[%emt 0:03:29][%cal Oc5c4]} (19... c4 {keeps more tension.} 20. Bd2 Kg8 21. Na4 Nc5) 20. Qd2 {[%emt 0:02:53]} (20. Na4 $11) 20... Kg8 {[%emt 0:05:15][%cal Oc5c4]} 21. Qc2 {[%emt 0:05:28]} Nb8 {[%emt 0:00:33]} (21... c4 $15) 22. a4 $14 {[%emt 0:01:34]} Na6 {[%emt 0:00:47][%cal Oc5c4]} 23. Nb5 {[%emt 0:01:22]} Qb6 {[%emt 0:01:22]} 24. Nf4 {[%emt 0:03:44]} Nc7 {[%emt 0:02:53]} 25. Nxc7 {[%emt 0:00:44]} ({White should try} 25. Na3 $16) 25... Rxc7 $11 {[%emt 0:02:38]} 26. Nd3 {[%emt 0:01:54][%cal Bf4d3,Bd3b2,Bb2c4,Bc4a5,Ba5c6][%mdl 32]} Rb8 {[%emt 0:00:39]} 27. Nb2 $1 {[%emt 0:01:30]} Rcb7 {[%emt 0:04:00]} (27... Bxb2 $11 28. Bxb2 c4) 28. Nc4 $16 {[%emt 0:01:15]} Qd8 {[%emt 0:00:03]} 29. Bb2 {[%emt 0:01:24]} Bxb2 {[%emt 0:00:44]} 30. Qxb2 {[%emt 0:00:43]} Rb4 {[%emt 0:00:25] White must now prevent ...Rxc4.} 31. Qc2 {[%emt 0:00:46]} Qf8 {[%emt 0:00:30]} 32. Na5 $1 {[%emt 0:03:06]} Ra8 {[%emt 0:02:24]} 33. Nc6 {[%emt 0:01:15]} Rb7 {[%emt 0:00:04]} 34. Qc3 {[%emt 0:01:41]} Qg7 {[%emt 0:04:51]} 35. Qxg7+ {[%emt 0:00:56]} ({Better is} 35. Qd2 $1 $16) 35... Kxg7 $11 {[%emt 0:00:02]} 36. Rc3 {[%emt 0:00:56]} f5 $2 {[%emt 0:03:23]} (36... Ra6 $11) 37. exf5 $18 {[%emt 0:05:15]} gxf5 {[%emt 0:00:16]} 38. Re1 {[%emt 0:00:50]} Kf7 {[%emt 0:11:19]} 39. a5 $2 {[%emt 0:00:33]} (39. Rf3 $18) 39... Kf8 $2 {[%emt 0:01:54][%mdl 8192]} (39... Nf6 $16) 40. Ra1 $2 {[%emt 0:03:01]} (40. Rf3 $18) 40... Nf6 $14 {[%emt 0:04:48]} 41. a6 {[%emt 0:32:44]} (41. Rd1 $14) 41... Rc7 $2 {[%emt 0:31:28] [#]} (41... Rb6 $15 {stays ahead.} 42. Re1 Rbxa6) 42. Nd4 {[%emt 0:04:08]} Rca7 $1 $11 {[%emt 0:00:20]} 43. Ne6+ {[%emt 0:02:38]} Kf7 {[%emt 0:01:18]} 44. Re1 {[%emt 0:01:44]} Rxa6 {[%emt 0:03:04] ...Ra1 would be deadly.} 45. Ng5+ {[%emt 0:02:11]} Ke8 {[%emt 0:02:44]} 46. Rd1 {[%emt 0:01:21]} (46. Rf3 $15) 46... Ra1 $17 {[%emt 0:00:46]} 47. Rcd3 {[%emt 0:03:54]} Rxd1+ {[%emt 0:04:29]} 48. Rxd1 {[%emt 0:00:15][%mdl 4096] Endgame KRN-KRN} Ra3 {[%emt 0:00:06]} 49. Ne6 {[%emt 0:02:47]} Kf7 {[%emt 0:03:59] Wards off Ng7} 50. Nd8+ {[%emt 0:04:58]} Kf8 {[%emt 0:04:41]} 51. Ne6+ {[%emt 0:00:26] [#]} Kg8 $1 {[%emt 0:00:19]} 52. Rd3 {[%emt 0:00:36]} (52. Nf4 $17) 52... Ng4 {[%emt 0:01:13] ( -> ...Ra1+)} 53. Rg3 $2 {[%emt 0:00:43]} (53. g3 $17) 53... Ra1# {[%emt 0:00:15] Black used his chance.   Weighted Error Value: White=0.63/Black=0.38} 0-1

[Event "1st FIDE Olympiad DIS 2023"]
[Site "Belgrade"]
[Date "2023.02.03"]
[Round "5.14"]
[White "Mate, Balazs"]
[Black "Mamarajabov, Sardorbek"]
[Result "1-0"]
[ECO "B41"]
[WhiteElo "2015"]
[BlackElo "1712"]
[Annotator "TA"]
[PlyCount "117"]
[EventDate "2023.01.30"]
[EventType "team-tourn"]
[EventCountry "SRB"]
[SourceTitle "playchess.com"]
[Source "ChessBase"]
[SourceQuality "1"]
[WhiteTeam "Hungary"]
[BlackTeam "Uzbekistan"]
[WhiteTeamCountry "HUN"]
[BlackTeamCountry "UZB"]
[TimeControl "40/5400+30:1800+30"]

{[%evp 14,117,39,17,41,-19,-3,-26,10,4,18,13,12,13,12,0,9,-24,16,10,22,20,28,48,83,0,0,0,0,-31,0,0,20,0,38,-10,0,-18,-8,-24,14,-15,0,0,0,0,0,0,2,-29,0,0,6,25,7,0,0,0,0,0,0,-2,41,33,139,118,200,187,199,198,197,174,243,249,267,223,316,262,467,468,497,404,524,515,532,486,499,492,29980,29981,29981,29982,29982,29983,29982,29979,29979,29980,29980,29981,29981,29982,29982,29983,29984,29984]} 1. e4 {[%emt 0:00:06]} c5 {[%emt 0:00:33]} 2. Nf3 {[%emt 0:00:20]} e6 {[%emt 0:00:05]} 3. d4 {[%emt 0:00:14]} cxd4 {[%emt 0:00:05]} 4. Nxd4 {[%emt 0:00:16]} a6 {[%emt 0:00:05]} 5. c4 {[%emt 0:00:39]} Nf6 {[%emt 0:00:18]} 6. Nc3 {[%emt 0:01:50]} Qc7 {[%emt 0:00:31] 6...Qc7 is better than 6...Bb4.} 7. Be3 {[%emt 0:04:46]} Bb4 {[%emt 0:00:57]} 8. Bd3 {[%emt 0:01:38]} (8. Qb3 $5 {[%cal Rb3b4]} Bc5 9. f3 $11) 8... Nc6 {[%emt 0:00:14] B41: Sicilian: Kan Variation: 5 c4.} 9. Nde2 {[%emt 0:06:50] [#]} ({Better is} 9. Rc1 $14) 9... Ng4 $146 {[%emt 0:04:11][%cal Og4e3]} ({Predecessor:} 9... Ne5 10. O-O Bxc3 11. Nxc3 Neg4 12. g3 Nxe3 13. fxe3 h5 14. Qf3 d6 15. Rac1 Ng4 16. Qf4 {0-1 Cuevas Feliz,F (1832)-Guzman,C (2276) Santo Domingo Duarte Memorial 7th 2018 (1)}) 10. Bf4 {[%emt 0:03:59]} Nge5 {[%emt 0:02:45] Black has an edge.} 11. O-O {[%emt 0:01:51]} d6 {[%emt 0:04:18]} 12. b3 {[%emt 0:02:24]} Bc5 {[%emt 0:05:42]} 13. Qd2 {[%emt 0:02:26]} O-O {[%emt 0:02:47]} 14. Rad1 {[%emt 0:01:23]} Rd8 {[%emt 0:04:47]} 15. Bb1 {[%emt 0:01:17]} f6 {[%emt 0:05:14]} (15... Rb8 $5 {[%cal Rb7b5]}) 16. h3 {[%emt 0:01:35]} Bd7 {[%emt 0:01:52]} 17. Be3 {[%emt 0:06:11]} Be8 {[%emt 0:10:31]} 18. f4 {[%emt 0:03:02]} Nf7 {[%emt 0:00:51][%cal Ob7b5]} 19. Nd4 {[%emt 0:04:52]} (19. f5 $16) 19... Nxd4 {[%emt 0:01:22]} 20. Bxd4 {[%emt 0:00:34]} b5 {[%emt 0:03:29]} 21. cxb5 {[%emt 0:05:55]} axb5 {[%emt 0:00:12]} (21... Rac8 {simplifies} 22. Rc1 axb5 23. Bxc5 dxc5 24. Qe3 b4) 22. f5 {[%emt 0:02:51]} exf5 {[%emt 0:07:13]} 23. Nd5 {[%emt 0:03:45]} Qa7 {[%emt 0:01:10]} 24. Rxf5 {[%emt 0:01:57]} (24. exf5 $14 Bc6 25. Nf4) 24... Ne5 {[%emt 0:00:58]} 25. Kh2 {[%emt 0:05:33]} Rac8 {[%emt 0:13:34] [#] Hoping for ...Bxd4.} 26. Bb2 {[%emt 0:00:22]} Kh8 {[%emt 0:05:07]} 27. Rff1 {[%emt 0:06:15]} Bf7 {[%emt 0:02:08]} 28. Qf4 {[%emt 0:01:26][%cal Od5f6]} Rf8 {[%emt 0:07:16]} 29. Qh4 {[%emt 0:02:00][%cal Of1f6]} Ng6 {[%emt 0:05:40]} 30. Qg3 {[%emt 0:03:07][%cal Od5f6] White wants to play Nxf6!} Ne5 {[%emt 0:00:58]} 31. Qf4 {[%emt 0:04:46]} Bxd5 {[%emt 0:03:26]} 32. exd5 $40 {[%emt 0:03:00][%mdl 128] White has some attack.} Qe7 {[%emt 0:02:34]} 33. Qh4 {[%emt 0:02:49][%csl Gb1][%cal Rh4h7]} g6 {[%emt 0:00:24]} 34. Kh1 {[%emt 0:01:27]} Kg8 {[%emt 0:02:12]} 35. Qg3 {[%emt 0:06:36]} Qg7 {[%emt 0:01:24]} 36. Rf4 {[%emt 0:01:46]} b4 {[%emt 0:01:54]} 37. Bc1 {[%emt 0:01:28][%cal Bb2c1,Bc1d2,Bd2b4][%mdl 32]} g5 {[%emt 0:00:43]} 38. Rf5 {[%emt 0:01:29][%cal Rc1g5]} Bd4 {[%emt 0:00:45] Black is on the road to losing.} 39. Bd2 {[%emt 0:01:57]} h6 {[%emt 0:00:46]} (39... Bc3 $16 {was necessary.} 40. Bxg5 Rf7) 40. Bxb4 $18 {[%emt 0:01:31]} Bc5 {[%emt 0:00:13]} 41. Bc3 {[%emt 0:30:59]} Qb7 {[%emt 0:30:37]} 42. Qe1 {[%emt 0:00:00]} Rce8 {[%emt 0:00:00]} (42... Ba3 $142 43. Rf1 Rc7) 43. Qd2 {[%emt 0:00:00]} Qg7 {[%emt 0:00:00]} 44. Rdf1 {[%emt 0:00:00]} g4 {[%emt 0:00:00]} (44... Ba3 {keeps fighting.} 45. b4 Rb8) 45. Bd4 {[%emt 0:00:00]} Nd7 $2 {[%emt 0:00:00]} (45... Bxd4 46. Qxd4 Nd7) 46. Bxc5 {[%emt 0:00:00]} Nxc5 {[%emt 0:00:00]} 47. Qf4 {[%emt 0:00:00]} g3 {[%emt 0:00:59]} 48. Qxd6 {[%emt 0:00:00]} (48. Rxf6 Rxf6 49. Qc4 Rxf1+ 50. Qxf1 Re3 51. h4 Qe5) 48... Ne4 {[%emt 0:00:17]} 49. Bxe4 {[%emt 0:00:14]} Rxe4 {[%emt 0:00:05]} 50. R5f3 {[%emt 0:00:25]} (50. Rxf6 $2 {perishes.} Rxf6 51. Qb8+ Kh7 $19) 50... Re5 {[%emt 0:01:09] [#]} (50... Kh8 $18 51. Rxg3 (51. Rxf6 $2 {too greedy.} Rxf6 52. Qb8+ Kh7 $19) 51... Qe7 52. Qxe7 Rxe7) 51. Qxe5 $3 {[%emt 0:01:41][%mdl 512] White mates.} fxe5 {[%emt 0:00:05]} 52. Rxf8+ {[%emt 0:00:08]} Qxf8 {[%emt 0:00:01]} 53. Rxf8+ {[%emt 0:00:36]} Kxf8 {[%emt 0:00:01] KP-KP} 54. Kg1 {[%emt 0:00:09]} Ke7 {[%emt 0:00:06]} 55. Kf1 {[%emt 0:00:13]} Kd6 {[%emt 0:00:09]} 56. Ke2 {[%emt 0:00:20]} Kxd5 {[%emt 0:00:20]} 57. Ke3 {[%emt 0:00:23]} h5 {[%emt 0:00:20]} 58. a4 {[%emt 0:00:32]} h4 {[%emt 0:01:10]} 59. b4 {[%emt 0:00:19] Weighted Error Value: White=0.14 (very precise) /Black=0.34} 1-0

[Event "1st FIDE Olympiad DIS 2023"]
[Site "Belgrade"]
[Date "2023.02.03"]
[Round "5.14"]
[White "CHIKAFU, ONAI"]
[Black "Sadam Ali Sheikh"]
[Result "1-0"]
[ECO "C01"]
[WhiteElo "1494"]
[BlackElo "1578"]
[Annotator "NA COMBH"]
[PlyCount "115"]
[EventDate "2023.01.30"]
[EventType "team-tourn"]
[EventCountry "SRB"]
[SourceTitle "playchess.com"]
[Source "ChessBase"]
[SourceQuality "1"]
[WhiteTeam "Zimbabwe"]
[BlackTeam "Kenya"]
[WhiteTeamCountry "ZIM"]
[BlackTeamCountry "KEN"]
[TimeControl "40/5400+30:1800+30"]

1. e4 {[%emt 0:00:06]} e6 {[%emt 0:04:44]} 2. d4 {[%emt 0:00:33]} d5 {[%emt 0:00:08]} 3. exd5 {[%emt 0:00:58]} exd5 {[%emt 0:00:11]} 4. Nf3 {[%emt 0:00:18]} Bd6 {[%emt 0:00:38]} 5. Bd3 {[%emt 0:00:18]} Ne7 {[%emt 0:00:41]} 6. O-O {[%emt 0:01:10]} Bf5 {[%emt 0:00:14]} 7. Re1 {[%emt 0:00:52]} O-O {[%emt 0:00:18]} 8. Nc3 {[%emt 0:00:44]} Bxd3 {[%emt 0:00:38]} 9. Qxd3 {[%emt 0:00:19]} c6 {[%emt 0:00:06]} 10. Bg5 {[%emt 0:00:51]} f6 {[%emt 0:01:26]} 11. Bh4 {[%emt 0:00:25]} Nd7 {[%emt 0:00:57]} 12. Re6 {[%emt 0:00:59]} Nb6 {[%emt 0:04:47]} 13. Rae1 {[%emt 0:00:40]} Ng6 {[%emt 0:03:23]} 14. Bg3 {[%emt 0:02:37]} Bxg3 {[%emt 0:04:56]} 15. hxg3 {[%emt 0:00:42]} Qd7 {[%emt 0:00:08]} 16. Qf5 {[%emt 0:00:58]} Rae8 {[%emt 0:01:23]} 17. b3 {[%emt 0:01:22]} Re7 {[%emt 0:00:36]} 18. Qh3 {[%emt 0:01:21]} Rfe8 {[%emt 0:03:17]} 19. Rxe7 {[%emt 0:00:26]} Rxe7 {[%emt 0:00:17]} 20. Qxd7 {[%emt 0:01:15]} Nxd7 {[%emt 0:00:21]} 21. Kf1 {[%emt 0:00:46]} Kf7 {[%emt 0:00:04]} 22. Rxe7+ {[%emt 0:01:03]} Kxe7 {[%emt 0:02:05]} 23. Ke2 {[%emt 0:00:25]} Kd6 {[%emt 0:01:32]} 24. Nd1 {[%emt 0:00:24]} Ne7 {[%emt 0:01:45]} 25. Ne3 {[%emt 0:00:22]} b5 {[%emt 0:01:34]} 26. Ne1 {[%emt 0:01:01]} b4 {[%emt 0:06:00]} 27. Nd3 {[%emt 0:00:31]} a5 {[%emt 0:00:14]} 28. Nf4 {[%emt 0:00:28]} g6 {[%emt 0:03:02]} 29. Kd3 {[%emt 0:00:42]} Nc8 {[%emt 0:03:41]} 30. c4 {[%emt 0:00:28]} bxc3 {[%emt 0:05:07]} 31. Kxc3 {[%emt 0:00:32]} Nf8 {[%emt 0:04:12]} 32. Ng4 {[%emt 0:00:38]} Nd7 {[%emt 0:04:09]} 33. b4 {[%emt 0:00:47]} axb4+ {[%emt 0:04:11]} 34. Kxb4 {[%emt 0:00:14]} c5+ {[%emt 0:02:18]} 35. dxc5+ {[%emt 0:00:33]} Kc6 {[%emt 0:01:53]} 36. Ne2 {[%emt 0:01:07]} f5 {[%emt 0:03:39]} 37. Nd4+ {[%emt 0:01:01]} Kc7 {[%emt 0:00:19]} 38. Ne3 {[%emt 0:00:53]} Ne7 {[%emt 0:00:23]} 39. Kb5 {[%emt 0:00:37]} Ne5 {[%emt 0:00:42]} 40. a4 {[%emt 0:01:16]} Ng4 {[%emt 0:05:34]} 41. Nxg4 {[%emt 0:31:11]} fxg4 {[%emt 0:30:02]} 42. a5 {[%emt 0:00:29]} Nc8 {[%emt 0:01:22]} 43. c6 {[%emt 0:00:29]} Kd6 {[%emt 0:00:56]} 44. Ka6 {[%emt 0:00:18]} Kc5 {[%emt 0:01:22]} 45. Kb7 {[%emt 0:00:43]} Nd6+ {[%emt 0:00:28]} 46. Kc7 {[%emt 0:00:31]} Nc4 {[%emt 0:09:58]} 47. a6 {[%emt 0:00:33]} Nb6 {[%emt 0:00:46]} 48. Ne6+ {[%emt 0:00:39]} Kb5 {[%emt 0:00:28]} 49. Kb7 {[%emt 0:00:24]} Nc4 {[%emt 0:08:43]} 50. a7 {[%emt 0:00:23]} Na5+ {[%emt 0:00:13]} 51. Kc7 {[%emt 0:00:22]} Nxc6 {[%emt 0:05:51]} 52. a8=Q {[%emt 0:00:21]} Nb4 {[%emt 0:00:36]} 53. Qh8 {[%emt 0:00:53]} Kc4 {[%emt 0:00:19]} 54. Qd4+ {[%emt 0:00:29]} Kb3 {[%emt 0:00:56]} 55. Nc5+ {[%emt 0:00:26]} Ka3 {[%emt 0:00:21]} 56. Qc3+ {[%emt 0:00:19]} Ka2 {[%emt 0:00:53]} 57. Qxb4 {[%emt 0:00:16]} h5 {[%emt 0:00:14]} 58. Nd3 {[%emt 0:00:18]} 1-0